bitfinex/quotes_SOLUSD_20251126
["timestamp","ask_amount","ask_price","bid_price","bid_amount"]
[1764158028289,4.48483538,137.05,137.03,62.64905656]
[1764158028889,5.47915852,137.06,137.03,62.64905656]
[1764158029196,4.89295787,137.05,137.03,62.64905656]
[1764158029497,5.47915852,137.06,137.03,62.64905656]
[1764158029698,4.89305627,137.05,137.03,62.64905656]
[1764158029881,5.47915852,137.06,137.03,62.64905656]
[1764158030082,4.89305627,137.05,137.03,62.64905656]
[1764158030298,5.19483538,137.06,137.03,62.64905656]
[1764158032872,0.2,137.07,137.04,5.20483538]
[1764158033302,0.2,137.07,137.05,0.72]
[1764158037702,16.308864,137.06,137.05,62.64905656]
[1764158038105,16.508864,137.07,137.05,62.64905656]
[1764158038395,16.508864,137.07,137.06,0.72]
[1764158038580,16.508864,137.07,137.06,62.64905656]
[1764158041202,0.2,137.07,137.06,62.64905656]
[1764158042474,0.2,137.07,137.06,61.92905656]
[1764158045285,16.508864,137.07,137.06,61.92905656]
[1764158045598,19.37559345,137.07,137.06,61.92905656]
[1764158045972,22.59559345,137.07,137.06,61.92905656]
[1764158046391,22.59559345,137.07,137.06,62.59905656]
[1764158046392,19.728864,137.07,137.06,62.59905656]
[1764158046788,19.728864,137.07,137.06,61.92905656]
[1764158047191,23.25559345,137.07,137.06,61.92905656]
[1764158047396,27.48462097,137.07,137.06,61.92905656]
[1764158047604,28.14462097,137.07,137.06,61.92905656]
[1764158048508,24.61789152,137.07,137.06,61.92905656]
[1764158048919,19.728864,137.07,137.06,61.92905656]
[1764158049905,28.14405805,137.07,137.06,61.92905656]
[1764158051206,23.25559345,137.07,137.06,61.92905656]
[1764158052010,20.388864,137.07,137.06,61.92905656]
[1764158052187,23.25559345,137.07,137.06,61.92905656]
[1764158054815,20.388864,137.07,137.06,61.92905656]
[1764158055017,23.25559345,137.07,137.06,61.92905656]
[1764158055212,32.34986151,137.07,137.06,61.92905656]
[1764158056098,37.23847061,137.07,137.06,61.92905656]
[1764158056500,20.92960661,137.07,137.06,61.92905656]
[1764158060728,20.95960661,137.07,137.06,61.92905656]
[1764158062634,20.81744504,137.07,137.06,61.92905656]
[1764158062823,20.12744504,137.07,137.06,61.92905656]
[1764158063420,20.81744504,137.07,137.06,61.92905656]
[1764158064636,20.12744504,137.07,137.06,61.92905656]
[1764158065222,20.26960661,137.07,137.06,61.92905656]
[1764158072741,20.12744504,137.07,137.06,61.92905656]
[1764158074145,20.14037027,137.07,137.06,61.92905656]
[1764158074448,20.14037027,137.07,137.06,62.61905656]
[1764158074742,20.14037027,137.07,137.06,61.92905656]
[1764158075443,20.28253184,137.07,137.06,61.92905656]
[1764158075744,20.28253184,137.07,137.06,62.61905656]
[1764158076245,20.28253184,137.07,137.06,61.92905656]
[1764158084651,17.41580239,137.07,137.06,61.92905656]
[1764158084859,20.28253184,137.07,137.06,61.92905656]
[1764158085732,20.28253184,137.07,137.06,62.59905656]
[1764158086133,20.28253184,137.07,137.06,61.92905656]
[1764158088139,20.28253184,137.07,137.06,62.59905656]
[1764158089068,0.28432314,137.05,137.0,82.2115884]
[1764158089259,2.86672945,137.02,137.01,0.67]
[1764158089465,7.76826378,137.02,137.01,0.67]
[1764158089934,4.90153433,137.02,137.01,0.67]
[1764158090947,3.22,137.04,137.01,0.67]
[1764158091147,7.76391297,137.03,137.01,0.67]
[1764158091449,3.22,137.04,137.01,62.59905656]
[1764158091761,3.22,137.04,137.02,0.67]
[1764158093046,6.08672945,137.04,137.02,0.67]
[1764158093464,3.22,137.04,137.02,0.67]
[1764158097060,3.22,137.04,137.02,62.59905656]
[1764158097445,3.22,137.04,137.03,0.67]
[1764158097664,8.11546695,137.04,137.03,0.67]
[1764158100450,4.89546695,137.04,137.03,62.59905656]
[1764158100762,3.22,137.06,137.03,67.08045365]
[1764158100963,0.2,137.07,137.05,4.48139709]
[1764158101170,0.2,137.07,137.06,0.67]
[1764158101466,5.0964166,137.07,137.06,62.59905656]
[1764158102953,5.0964166,137.07,137.06,61.92905656]
[1764158109689,5.0964166,137.07,137.06,62.61905656]
[1764158110490,5.0964166,137.07,137.06,61.92905656]
[1764158110883,10.22781369,137.07,137.06,61.92905656]
[1764158111085,5.7464166,137.07,137.06,61.92905656]
[1764158111383,10.22781369,137.07,137.06,61.92905656]
[1764158112681,13.44781369,137.07,137.06,61.92905656]
[1764158114786,22.54208175,137.07,137.06,61.92905656]
[1764158114986,38.85094575,137.07,137.06,61.92905656]
[1764158116790,22.54208175,137.07,137.06,61.92905656]
[1764158117505,16.308864,137.03,137.01,0.67]
[1764158117680,24.01026109,137.03,137.01,62.59905656]
[1764158118886,7.70139709,137.03,137.01,62.59905656]
[1764158119609,7.70139709,137.03,137.02,0.67]
[1764158119902,12.59308516,137.03,137.02,0.67]
[1764158120216,12.59308516,137.03,137.01,61.92905656]
[1764158120389,7.70139709,137.03,137.01,62.59905656]
[1764158121079,3.22,137.03,137.02,0.67]
[1764158121598,29.60020601,137.06,137.02,0.67]
[1764158121599,8.11183573,137.05,137.02,0.67]
[1764158121775,3.22,137.05,137.02,0.67]
[1764158121977,3.22,137.05,137.02,62.59905656]
[1764158122221,3.22,137.05,137.03,4.48139709]
[1764158122430,3.42,137.07,137.04,4.48139709]
[1764158122732,3.42,137.07,137.04,0.67]
[1764158122941,3.42,137.07,137.05,0.67]
[1764158124107,0.2,137.07,137.05,5.15139709]
[1764158124318,0.2,137.07,137.06,4.48139709]
[1764158124513,0.2,137.07,137.06,0.67]
[1764158128739,0.2,137.08,137.07,61.72905656]
[1764158128927,0.2,137.08,137.07,62.39905656]
[1764158136232,0.2,137.08,137.07,61.72905656]
[1764158136439,4.68139709,137.08,137.07,61.72905656]
[1764158136738,8.80994492,137.07,137.06,61.72905656]
[1764158136916,0.28432314,137.06,137.02,0.67]
[1764158137244,4.48139709,137.04,137.02,62.39905656]
[1764158137938,5.14139709,137.03,137.02,61.72905656]
[1764158138333,4.48139709,137.03,137.02,61.72905656]
[1764158138549,4.48139709,137.03,137.02,62.39905656]
[1764158138850,24.01026109,137.04,137.02,62.39905656]
[1764158141644,3.22,137.04,137.03,0.67]
[1764158144344,29.64164647,137.06,137.03,0.67]
[1764158144545,16.308864,137.04,137.03,62.39905656]
[1764158156244,16.308864,137.04,137.03,61.72905656]
[1764158156450,24.01026109,137.04,137.03,61.72905656]
[1764158158169,38.65484613,137.04,137.03,61.72905656]
[1764158158666,32.16193054,137.04,137.03,61.72905656]
[1764158158960,28.62313206,137.04,137.03,61.72905656]
[1764158159274,31.49193054,137.04,137.03,61.72905656]
[1764158160441,36.37204983,137.04,137.03,61.72905656]
[1764158160771,37.04204983,137.04,137.03,61.72905656]
[1764158161344,58.98550885,137.04,137.03,61.72905656]
[1764158164667,58.98550885,137.04,136.99,0.72]
[1764158164850,16.308864,137.0,136.99,0.72]
[1764158165450,19.17766248,137.0,136.96,2.86879848]
[1764158165655,2.86879848,137.0,136.96,0.72]
[1764158165968,2.86879848,137.0,136.95,2.86879848]
[1764158165969,16.308864,136.99,136.97,0.72]
[1764158166475,16.308864,136.99,136.95,0.72]
[1764158166476,6.77879848,136.98,136.95,0.72]
[1764158166771,6.08879848,136.98,136.96,0.72]
[1764158167367,6.08879848,136.98,136.95,0.72]
[1764158167673,6.77879848,136.98,136.95,0.72]
[1764158167853,16.308864,136.96,136.95,0.72]
[1764158168165,19.528864,136.96,136.95,62.4]
[1764158168973,3.22,136.96,136.95,62.4]
[1764158169169,19.528864,136.96,136.95,63.12]
[1764158169391,3.22,136.96,136.95,63.12]
[1764158171568,3.22,136.96,136.95,62.4]
[1764158174555,3.22,136.96,136.95,63.07]
[1764158176362,3.22,136.96,136.95,62.4]
[1764158178254,3.22,136.96,136.95,63.07]
[1764158183470,16.308864,136.98,136.95,65.93879848]
[1764158183678,25.11880892,137.01,136.97,2.86879848]
[1764158183863,25.11880892,137.01,136.98,2.86879848]
[1764158183864,16.308864,136.99,136.98,2.86879848]
[1764158184182,16.308864,136.99,136.98,3.53879848]
[1764158184374,16.308864,137.0,136.98,3.53879848]
[1764158184579,3.22,137.03,136.99,3.53879848]
[1764158184887,3.22,137.03,137.0,2.86879848]
[1764158185182,3.22,137.03,137.0,65.93879848]
[1764158185892,16.308864,137.02,137.0,62.4]
[1764158186062,16.308864,137.02,137.0,63.07]
[1764158186463,3.22,137.03,137.0,65.26879848]
[1764158186775,3.22,137.03,137.01,0.67]
[1764158187081,3.22,137.03,137.01,3.53879848]
[1764158187259,19.528864,137.03,137.02,0.67]
[1764158187881,19.528864,137.03,137.0,63.07]
[1764158188059,19.528864,137.03,137.01,0.67]
[1764158188984,2.86879848,137.07,137.02,2.86879848]
[1764158189188,3.22,137.06,137.03,0.67]
[1764158191376,6.08879848,137.06,137.03,0.67]
[1764158193897,9.50994492,137.05,137.02,62.4]
[1764158194273,0.7,137.04,137.02,62.4]
[1764158194568,3.22,137.03,137.02,62.4]
[1764158195301,22.39766248,137.03,137.02,62.4]
[1764158198600,23.09766248,137.03,137.02,62.4]
[1764158198976,22.39766248,137.03,137.02,62.4]
[1764158199682,23.09766248,137.03,137.02,62.4]
[1764158201278,22.39766248,137.03,137.02,62.4]
[1764158203188,3.22,137.03,137.02,63.07]
[1764158203714,19.528864,137.03,137.02,63.07]
[1764158205791,19.528864,137.03,137.02,62.4]
[1764158206196,19.528864,137.03,137.02,63.06]
[1764158206404,22.39766248,137.03,137.02,62.4]
[1764158206808,19.528864,137.03,137.02,62.4]
[1764158207109,22.39766248,137.03,137.02,62.4]
[1764158208407,19.528864,137.03,137.02,63.06]
[1764158210509,22.39766248,137.03,137.02,63.06]
[1764158210698,22.39766248,137.03,137.02,62.4]
[1764158213388,22.39766248,137.03,137.02,63.06]
[1764158214406,19.528864,137.03,137.02,63.06]
[1764158215914,19.528864,137.03,137.02,62.4]
[1764158216135,22.39766248,137.03,137.02,62.4]
[1764158216800,31.2076074,137.03,137.02,62.4]
[1764158217107,31.9176074,137.03,137.02,62.4]
[1764158220124,31.2076074,137.03,137.02,62.4]
[1764158220314,36.08888984,137.03,137.02,62.4]
[1764158220511,37.70318648,137.03,137.02,62.4]
[1764158221426,28.89324156,137.03,137.02,62.4]
[1764158221602,24.41014644,137.03,137.02,63.06]
[1764158224924,8.10128244,137.03,137.02,63.06]
[1764158226427,3.22,137.07,137.02,67.54309512]
[1764158226627,4.89334744,137.06,137.03,5.18309512]
[1764158226813,19.528864,137.07,137.03,5.18309512]
[1764158227012,4.89337885,137.06,137.04,0.7]
[1764158227218,24.01195912,137.07,137.04,0.7]
[1764158227402,4.8949792,137.06,137.04,0.7]
[1764158227721,7.70309512,137.07,137.04,0.7]
[1764158228028,4.89495172,137.06,137.04,0.7]
[1764158228200,7.70309512,137.07,137.04,0.7]
[1764158228399,4.89715607,137.06,137.04,0.7]
[1764158228701,7.70309512,137.07,137.04,0.7]
[1764158229005,4.89715495,137.06,137.04,0.7]
[1764158229206,7.70309512,137.07,137.04,0.7]
[1764158229511,4.89840672,137.06,137.04,0.7]
[1764158229711,7.70309512,137.07,137.04,0.7]
[1764158229903,4.89749303,137.06,137.04,0.7]
[1764158230107,7.70309512,137.07,137.04,0.7]
[1764158230315,4.89776194,137.06,137.04,0.7]
[1764158230612,7.70309512,137.07,137.04,0.7]
[1764158230812,4.89697896,137.06,137.04,0.7]
[1764158231006,7.70309512,137.07,137.04,0.7]
[1764158231221,4.89697896,137.06,137.04,0.7]
[1764158231415,7.70309512,137.07,137.04,0.7]
[1764158231631,4.89655633,137.06,137.04,0.7]
[1764158231814,7.70309512,137.07,137.04,0.7]
[1764158232009,4.89655633,137.06,137.04,0.7]
[1764158232209,7.70309512,137.07,137.04,0.7]
[1764158232523,4.89582956,137.06,137.04,0.7]
[1764158232728,7.70309512,137.07,137.04,0.7]
[1764158233034,4.89582956,137.06,137.04,0.7]
[1764158233214,7.70309512,137.07,137.04,0.7]
[1764158233416,4.89517627,137.06,137.04,0.7]
[1764158233612,3.22,137.07,137.04,63.1]
[1764158233815,16.308864,137.05,137.04,63.1]
[1764158234903,22.34156423,137.05,137.04,62.4]
[1764158235228,31.05335319,137.05,137.04,62.4]
[1764158235633,16.308864,137.02,137.0,0.71]
[1764158235819,3.22,137.01,137.0,63.11]
[1764158238613,8.11286782,137.01,137.0,63.11]
[1764158242443,8.11286782,137.01,137.0,62.4]
[1764158242834,8.11286782,137.01,137.0,63.11]
[1764158245226,3.22,137.01,137.0,63.11]
[1764158245746,8.10874099,137.01,137.0,63.11]
[1764158246327,17.52173388,137.05,137.0,67.59309512]
[1764158246527,3.22,137.04,137.01,5.19309512]
[1764158246829,19.528864,137.04,137.01,5.19309512]
[1764158247037,16.308864,137.03,137.02,0.71]
[1764158251450,16.308864,137.03,137.02,63.11]
[1764158253258,21.44195912,137.03,137.02,62.4]
[1764158253451,20.79195912,137.03,137.02,62.4]
[1764158253834,29.60190404,137.03,137.02,62.4]
[1764158254142,30.25190404,137.03,137.02,62.4]
[1764158254341,29.60190404,137.03,137.02,62.4]
[1764158254758,30.25190404,137.03,137.02,62.4]
[1764158255574,16.308864,136.99,136.96,63.11]
[1764158255866,7.70309512,136.98,136.96,0.71]
[1764158256062,3.22,136.98,136.96,0.71]
[1764158257831,7.70309512,136.98,136.96,0.71]
[1764158258648,4.48309512,136.97,136.95,0.71]
[1764158259046,7.70309512,136.98,136.95,0.71]
[1764158259848,16.308864,136.96,136.95,0.71]
[1764158263359,16.308864,136.96,136.95,63.11]
[1764158274378,3.22,136.98,136.95,63.11]
[1764158274679,3.22,136.98,136.96,0.66]
[1764158275278,3.22,136.98,136.96,63.06]
[1764158280189,3.22,136.98,136.97,0.66]
[1764158281173,3.22,136.98,136.97,63.06]
[1764158281567,17.23304004,136.98,136.97,62.4]
[1764158282562,15.62164312,136.98,136.97,62.4]
[1764158282770,15.76380469,136.98,136.97,62.4]
[1764158282984,20.63015651,136.98,136.97,62.4]
[1764158284083,15.76380469,136.98,136.97,62.4]
[1764158286694,15.18596626,136.98,136.97,63.06]
[1764158286903,3.22,136.98,136.97,63.06]
[1764158287993,6.0916982,136.98,136.97,62.4]
[1764158288573,3.22,136.98,136.97,62.4]
[1764158288769,3.22,136.98,136.97,63.12]
[1764158293894,22.4005622,137.0,136.97,63.12]
[1764158294090,22.4005622,137.0,136.98,0.68]
[1764158297373,19.528864,137.0,136.98,0.68]
[1764158297580,19.528864,137.0,136.98,63.08]
[1764158297779,3.22,137.0,136.98,63.08]
[1764158297979,3.22,137.0,136.99,0.68]
[1764158298201,3.22,137.0,136.99,63.08]
[1764158300291,8.11078906,137.0,136.99,63.08]
[1764158301805,3.22,137.0,136.99,63.08]
[1764158303812,19.78904078,137.0,136.99,62.4]
[1764158304388,19.528864,137.0,136.99,63.08]
[1764158306991,19.528864,137.0,136.99,62.4]
[1764158307192,27.28708394,137.0,136.99,62.4]
[1764158308728,36.76702886,137.0,136.99,62.4]
[1764158309222,36.09702886,137.0,136.99,62.4]
[1764158313034,36.09702886,137.0,136.99,0.68]
[1764158313035,4.88652174,137.0,136.99,0.68]
[1764158313230,40.39824186,137.04,136.99,0.68]
[1764158313421,13.6959473,137.03,136.99,0.68]
[1764158313616,4.88600238,137.02,136.99,0.68]
[1764158313931,25.11880892,137.03,136.99,6.7716982]
[1764158314331,16.308864,137.01,137.0,0.68]
[1764158314512,25.11880892,137.03,137.0,0.68]
[1764158314513,3.22,137.05,137.0,3.5516982]
[1764158314713,13.6955994,137.04,137.0,3.5516982]
[1764158314912,3.22,137.05,137.01,0.68]
[1764158314913,16.308864,137.02,137.01,0.68]
[1764158315125,19.528864,137.05,137.01,0.68]
[1764158315316,4.8856409,137.04,137.01,0.68]
[1764158315528,4.8856409,137.03,137.01,0.68]
[1764158315723,22.4005622,137.05,137.01,0.68]
[1764158315929,4.88476027,137.04,137.01,0.68]
[1764158316128,4.88476027,137.03,137.01,0.68]
[1764158316320,23.0705622,137.05,137.01,0.68]
[1764158316516,4.8843226,137.04,137.01,0.68]
[1764158316739,4.8843226,137.03,137.01,0.68]
[1764158316933,23.0705622,137.05,137.01,0.68]
[1764158317133,4.8843226,137.04,137.01,0.68]
[1764158317441,22.4005622,137.05,137.01,0.68]
[1764158317740,4.88371873,137.04,137.01,0.68]
[1764158317930,22.4005622,137.05,137.01,0.68]
[1764158318124,4.88526977,137.04,137.01,0.68]
[1764158318327,22.4005622,137.05,137.01,63.08]
[1764158318536,4.88413141,137.04,137.01,65.9516982]
[1764158318724,16.308864,137.05,137.02,0.68]
[1764158318925,4.88424941,137.04,137.02,3.5516982]
[1764158319126,8.80994492,137.06,137.02,3.5516982]
[1764158319318,4.8842524,137.05,137.03,0.68]
[1764158319520,4.8842524,137.04,137.03,0.68]
[1764158320517,8.80994492,137.06,137.03,0.68]
[1764158320834,4.88244422,137.05,137.03,0.68]
[1764158321034,11.68164312,137.06,137.03,0.68]
[1764158321216,4.88413087,137.05,137.03,0.68]
[1764158321415,8.80994492,137.06,137.03,0.68]
[1764158321748,4.88290813,137.05,137.03,0.68]
[1764158321921,11.68164312,137.06,137.03,0.68]
[1764158322119,4.8820454,137.05,137.03,0.68]
[1764158322320,12.35164312,137.06,137.03,0.68]
[1764158322641,11.68164312,137.04,137.01,63.08]
[1764158323919,11.68164312,137.04,137.01,62.4]
[1764158324115,11.68164312,137.04,137.02,0.66]
[1764158324733,8.80994492,137.05,137.02,0.66]
[1764158327044,23.35488534,137.07,137.02,3.5316982]
[1764158327243,13.6888107,137.06,137.02,0.66]
[1764158327449,8.80994492,137.06,137.03,0.66]
[1764158328545,19.528864,137.07,137.03,0.66]
[1764158328728,19.528864,137.07,137.03,63.06]
[1764158329247,19.528864,137.07,137.04,0.66]
[1764158329453,19.528864,137.07,137.04,63.06]
[1764158331149,19.528864,137.07,137.05,0.66]
[1764158332051,0.2,137.08,137.05,65.9316982]
[1764158332247,0.2,137.08,137.06,0.66]
[1764158337562,16.308864,137.07,137.06,63.06]
[1764158340171,0.2,137.08,137.07,46.091136]
[1764158340467,0.2,137.08,137.07,46.751136]
[1764158341146,0.2,137.08,137.07,46.091136]
[1764158344263,0.2,137.08,137.07,46.751136]
[1764158344445,0.2,137.08,137.07,46.091136]
[1764158348774,13.48882123,137.08,137.07,46.091136]
[1764158350183,8.80994492,137.07,137.05,46.091136]
[1764158350364,13.96882123,137.07,137.05,46.091136]
[1764158350887,13.28882123,137.07,137.05,46.091136]
[1764158351092,13.28882123,137.07,137.05,46.791136]
[1764158353190,8.80994492,137.07,137.05,46.791136]
[1764158357485,3.42,137.08,137.06,0.71]
[1764158357693,16.308864,137.07,137.06,0.71]
[1764158358368,0.2,137.08,137.06,5.18887631]
[1764158358594,0.2,137.08,137.07,3.22]
[1764158358885,0.2,137.08,137.07,50.021136]
[1764158363496,0.2,137.08,137.07,54.50001231]
[1764158368392,0.2,137.08,137.07,63.30995723]
[1764158371100,0.2,137.08,137.07,51.28001231]
[1764158371490,0.2,137.08,137.07,54.50001231]
[1764158372888,0.2,137.08,137.07,46.801136]
[1764158373088,0.2,137.08,137.07,50.021136]
[1764158373294,13.95882123,137.11,137.08,45.891136]
[1764158373495,13.95882123,137.11,137.08,46.601136]
[1764158374097,0.67,137.1,137.08,45.891136]
[1764158374407,8.80994492,137.11,137.08,46.601136]
[1764158374408,9.47994492,137.11,137.08,46.601136]
[1764158374815,9.47994492,137.11,137.08,45.891136]
[1764158375813,8.80994492,137.11,137.08,46.601136]
[1764158376112,9.47994492,137.11,137.08,46.601136]
[1764158376995,0.2,137.12,137.09,0.71]
[1764158378293,0.2,137.12,137.09,3.93]
[1764158378513,16.308864,137.11,137.1,0.71]
[1764158379121,16.308864,137.11,137.1,46.601136]
[1764158381911,0.2,137.12,137.1,46.601136]
[1764158383017,16.308864,137.11,137.1,45.891136]
[1764158383722,16.308864,137.11,137.1,46.601136]
[1764158385106,25.80880892,137.11,137.1,45.891136]
[1764158385320,30.28768523,137.11,137.1,45.891136]
[1764158386937,25.80880892,137.11,137.1,45.891136]
[1764158387930,14.39098197,137.11,137.1,45.891136]
[1764158389306,9.49994492,137.11,137.1,45.891136]
[1764158389707,14.39158075,137.11,137.1,45.891136]
[1764158389908,18.87045706,137.11,137.1,45.891136]
[1764158391338,35.4636442,137.11,137.1,45.891136]
[1764158391532,38.6836442,137.11,137.1,45.891136]
[1764158391823,0.28432314,137.1,137.07,45.891136]
[1764158392031,8.80994492,137.09,137.07,45.891136]
[1764158392500,8.80994492,137.09,137.07,46.601136]
[1764158398314,8.80994492,137.09,137.07,45.891136]
[1764158398520,8.80994492,137.09,137.08,0.71]
[1764158398737,13.70349541,137.09,137.08,0.71]
[1764158399241,13.70349541,137.09,137.07,45.891136]
[1764158399441,8.80994492,137.09,137.07,46.601136]
[1764158400240,9.49994492,137.08,137.06,45.891136]
[1764158400448,5.16887631,137.09,137.06,46.601136]
[1764158400613,4.89430826,137.08,137.06,46.601136]
[1764158400821,0.69,137.08,137.06,45.891136]
[1764158401642,5.16887631,137.09,137.06,46.601136]
[1764158401844,4.8947514,137.08,137.06,46.601136]
[1764158402022,8.80994492,137.08,137.06,46.601136]
[1764158405136,9.49994492,137.08,137.06,45.891136]
[1764158405346,9.49994492,137.08,137.04,45.891136]
[1764158405347,8.80994492,137.06,137.04,45.891136]
[1764158405661,24.06788395,137.05,137.02,0.71]
[1764158405844,4.89256488,137.04,137.02,63.11]
[1764158406051,19.86531907,137.05,137.02,63.11]
[1764158406762,23.08531907,137.05,137.02,63.11]
[1764158407325,22.39531907,137.05,137.03,0.68]
[1764158407522,23.08531907,137.05,137.02,63.08]
[1764158408872,21.94185408,137.07,137.03,3.54645507]
[1764158409179,8.80994492,137.08,137.05,2.86645507]
[1764158409346,8.80994492,137.08,137.05,65.26645507]
[1764158409545,16.308864,137.07,137.06,0.68]
[1764158410647,16.308864,137.07,137.05,63.08]
[1764158410878,16.308864,137.07,137.05,0.68]
[1764158411053,11.67639999,137.08,137.06,0.68]
[1764158411054,16.308864,137.08,137.06,0.68]
[1764158417964,25.11880892,137.1,137.07,2.86645507]
[1764158418390,25.11880892,137.1,137.08,0.67]
[1764158418590,25.11880892,137.1,137.08,62.4]
[1764158418767,25.79880892,137.1,137.08,62.4]
[1764158419357,28.66526399,137.1,137.08,62.4]
[1764158419974,20.4634544,137.09,137.08,62.4]
[1764158420286,17.59699933,137.09,137.08,62.4]
[1764158421996,17.59699933,137.09,137.06,0.67]
[1764158422172,12.02994492,137.09,137.06,0.67]
[1764158422486,3.22,137.09,137.07,2.86645507]
[1764158422687,16.308864,137.1,137.07,2.86645507]
[1764158422881,16.308864,137.1,137.08,3.53645507]
[1764158423285,16.308864,137.1,137.09,0.67]
[1764158423484,21.19724112,137.1,137.09,0.67]
[1764158425766,4.88837712,137.1,137.09,0.67]
[1764158425974,4.88837712,137.1,137.09,3.53645507]
[1764158426896,4.88837712,137.1,137.09,0.67]
[1764158428495,28.53880892,137.12,137.09,0.67]
[1764158428793,4.89196388,137.11,137.09,0.67]
[1764158428998,28.53880892,137.12,137.09,0.67]
[1764158429199,4.89196297,137.11,137.09,0.67]
[1764158429376,28.53880892,137.12,137.09,0.67]
[1764158429698,28.53880892,137.12,137.09,63.07]
[1764158429901,4.89241847,137.11,137.09,63.07]
[1764158430100,28.53880892,137.12,137.1,0.67]
[1764158430281,4.89241916,137.11,137.09,63.07]
[1764158430466,28.53880892,137.12,137.1,0.67]
[1764158430673,4.89232533,137.11,137.1,0.67]
[1764158432082,28.53880892,137.12,137.1,0.67]
[1764158433091,28.53880892,137.12,137.09,63.07]
[1764158433778,25.11880892,137.09,137.08,62.4]
[1764158434108,36.09656187,137.09,137.08,62.4]
[1764158435194,36.77656187,137.09,137.08,62.4]
[1764158435789,33.2301068,137.09,137.08,62.4]
[1764158436399,36.77656187,137.09,137.08,62.4]
[1764158437211,36.09656187,137.09,137.08,62.4]
[1764158438307,33.2301068,137.09,137.08,62.4]
[1764158438507,36.09656187,137.09,137.08,62.4]
[1764158439478,33.2301068,137.09,137.08,62.4]
[1764158440192,36.09656187,137.09,137.08,62.4]
[1764158441305,33.2301068,137.09,137.08,62.4]
[1764158441478,33.2301068,137.09,137.08,63.07]
[1764158441677,33.2301068,137.09,137.08,62.4]
[1764158441914,33.2301068,137.09,137.08,63.07]
[1764158443092,33.2301068,137.09,137.08,62.4]
[1764158443491,33.2301068,137.09,137.08,63.07]
[1764158443677,33.2301068,137.09,137.08,62.4]
[1764158444511,33.2301068,137.09,137.07,0.67]
[1764158444812,4.89129788,137.08,137.07,0.67]
[1764158446606,16.308864,137.08,137.07,0.67]
[1764158447804,21.19817486,137.08,137.07,0.67]
[1764158448012,16.308864,137.08,137.07,0.67]
[1764158450613,16.308864,137.09,137.08,46.091136]
[1764158450785,21.19853412,137.09,137.08,46.091136]
[1764158450986,21.19853412,137.09,137.08,46.761136]
[1764158452198,4.88967012,137.09,137.08,46.761136]
[1764158452396,0.2,137.12,137.08,52.84759107]
[1764158452593,0.2,137.12,137.09,3.53645507]
[1764158452999,0.2,137.12,137.1,0.67]
[1764158453514,0.2,137.12,137.11,2.86645507]
[1764158453711,0.2,137.12,137.11,49.62759107]
[1764158461236,0.2,137.12,137.11,46.761136]
[1764158461537,0.2,137.12,137.11,52.55060616]
[1764158462322,0.2,137.15,137.14,45.691136]
[1764158462910,3.78645507,137.15,137.14,45.691136]
[1764158463104,0.2,137.15,137.14,45.691136]
[1764158463430,3.06645507,137.15,137.14,45.691136]
[1764158463816,0.2,137.15,137.14,45.691136]
[1764158467118,0.2,137.15,137.14,46.351136]
[1764158468519,0.2,137.15,137.14,45.691136]
[1764158469034,0.2,137.15,137.14,46.351136]
[1764158471538,0.2,137.15,137.14,45.691136]
[1764158472212,0.2,137.15,137.14,46.351136]
[1764158474139,0.2,137.16,137.15,45.491136]
[1764158474346,0.2,137.16,137.15,46.181136]
[1764158474523,0.2,137.16,137.15,45.491136]
[1764158474925,0.2,137.16,137.15,46.181136]
[1764158476153,0.2,137.16,137.15,45.491136]